bitfinex/quotes_BTCUSD_20250119
["timestamp","ask_amount","ask_price","bid_price","bid_amount"]
[1737300475050,0.00047761,104810.0,104800.0,0.17329928]
[1737300475298,0.00047761,104810.0,104800.0,0.60467153]
[1737300475507,0.00047761,104810.0,104800.0,0.60371766]
[1737300476011,0.00047761,104810.0,104800.0,0.60968627]
[1737300477263,0.00047761,104810.0,104800.0,0.58668627]
[1737300479658,0.00047761,104810.0,104800.0,0.68668627]
[1737300479659,6.1e-07,104810.0,104800.0,0.68668627]
[1737300479839,6.1e-07,104810.0,104800.0,0.92886499]
[1737300480000,6.1e-07,104810.0,104800.0,0.95186499]
[1737300480201,6.1e-07,104810.0,104800.0,1.00166499]
[1737300481028,2.1e-07,104820.0,104810.0,0.62842665]
[1737300481228,2.1e-07,104820.0,104810.0,1.41950711]
[1737300481656,2.1e-07,104820.0,104810.0,1.46930711]
[1737300481854,2.1e-07,104820.0,104810.0,1.49713054]
[1737300482065,2.1e-07,104820.0,104810.0,1.50309915]
[1737300482268,1.1e-07,104830.0,104820.0,0.71121765]
[1737300482467,1.1e-07,104830.0,104820.0,0.94993966]
[1737300482668,1.1e-07,104830.0,104820.0,0.99973966]
[1737300483869,0.000428,104850.0,104840.0,0.66424085]
[1737300484075,0.00057792,104850.0,104840.0,1.31928011]
[1737300484824,9.2e-07,104850.0,104840.0,1.46928011]
[1737300485203,9.2e-07,104850.0,104840.0,0.93763891]
[1737300485402,9.2e-07,104850.0,104840.0,0.74690595]
[1737300485780,9.2e-07,104850.0,104840.0,0.2639075]
[1737300486035,9.2e-07,104850.0,104840.0,0.58664547]
[1737300486569,9.2e-07,104850.0,104840.0,0.63344547]
[1737300488387,9.2e-07,104850.0,104840.0,0.58664547]
[1737300489323,9.2e-07,104850.0,104840.0,0.52362487]
[1737300491497,9.2e-07,104850.0,104840.0,0.3508869]
[1737300491707,9.2e-07,104850.0,104840.0,0.52362487]
[1737300493003,9.2e-07,104850.0,104840.0,0.58664547]
[1737300495242,9.2e-07,104850.0,104840.0,0.66944547]
[1737300495428,9.2e-07,104850.0,104840.0,1.19056392]
[1737300496645,9.2e-07,104850.0,104840.0,1.20966431]
[1737300496846,9.2e-07,104850.0,104840.0,1.52946431]
[1737300498058,7.2e-07,104850.0,104840.0,1.52946431]
[1737300498859,7.2e-07,104850.0,104840.0,1.55728581]
[1737300499220,0.0004281,104880.0,104870.0,0.35537265]
[1737300499432,0.0004281,104880.0,104870.0,0.51763406]
[1737300499908,0.0004281,104880.0,104870.0,0.52359787]
[1737300500222,0.0004281,104880.0,104870.0,0.58661847]
[1737300500653,0.0004281,104880.0,104870.0,0.52359787]
[1737300501098,0.0004281,104880.0,104870.0,0.58661847]
[1737300502787,0.0004281,104880.0,104870.0,0.59611457]
[1737300504044,0.0004281,104880.0,104870.0,0.6150876]
[1737300504758,0.00034043,104880.0,104870.0,0.6150876]
[1737300506476,0.42148576,104880.0,104870.0,0.00596381]
[1737300506637,0.32128815,104880.0,104870.0,0.00596381]
[1737300508171,0.40654437,104880.0,104870.0,0.00596381]
[1737300510579,0.70226093,104880.0,104870.0,0.00596381]
[1737300511594,0.91348704,104880.0,104870.0,0.00596381]
[1737300514220,0.90848704,104880.0,104870.0,0.00596381]
[1737300516777,0.90848704,104880.0,104870.0,0.10131981]
[1737300517008,0.90848704,104880.0,104870.0,0.00596381]
[1737300517218,0.90848704,104880.0,104870.0,0.10131981]
[1737300517817,0.38097278,104880.0,104870.0,0.16434041]
[1737300518052,0.38097278,104880.0,104870.0,0.42405778]
[1737300518894,0.38097278,104880.0,104870.0,0.52329859]
[1737300519104,0.08525622,104880.0,104870.0,0.52329859]
[1737300519557,0.08525622,104880.0,104870.0,0.52359787]
[1737300519751,0.10126392,104890.0,104880.0,0.095347]
[1737300519957,0.10141381,104890.0,104880.0,0.41808497]
[1737300521338,0.10141381,104890.0,104880.0,0.42404878]
[1737300522221,0.01615759,104890.0,104880.0,0.42404878]
[1737300522406,0.01615759,104890.0,104880.0,0.48706938]
[1737300522592,0.01615759,104890.0,104880.0,0.42404878]
[1737300524739,0.01615759,104890.0,104880.0,0.52328959]
[1737300525119,0.01615759,104890.0,104880.0,0.52358887]
[1737300528280,0.01615759,104890.0,104880.0,0.52328959]
[1737300530215,0.01615759,104890.0,104880.0,0.25131081]
[1737300530414,0.01711439,104890.0,104880.0,0.25131081]
[1737300530779,0.01615759,104890.0,104880.0,0.42404878]
[1737300531654,0.10141381,104890.0,104880.0,0.48706938]
[1737300531861,0.10141381,104890.0,104880.0,0.58660947]
[1737300532913,0.01615759,104890.0,104880.0,0.58660947]
[1737300534431,0.01615759,104890.0,104880.0,0.52448683]
[1737300534802,0.01658519,104890.0,104880.0,0.52448683]
[1737300535593,0.01658519,104890.0,104880.0,0.52418755]
[1737300536031,0.01658519,104890.0,104880.0,0.51822374]
[1737300536923,0.01754199,104890.0,104880.0,0.24624496]
[1737300537157,0.01658519,104890.0,104880.0,0.30926556]
[1737300537569,0.11192219,104890.0,104880.0,0.30926556]
[1737300537973,0.11287899,104890.0,104880.0,0.30926556]
[1737300538217,0.11287899,104890.0,104880.0,0.24624496]
[1737300538467,0.19813521,104890.0,104880.0,0.24624496]
[1737300538638,0.19813521,104890.0,104880.0,0.15089796]
[1737300539072,0.37293593,104890.0,104880.0,0.00686092]
[1737300539282,0.37197913,104890.0,104880.0,0.00686092]
[1737300539437,0.66769569,104890.0,104880.0,0.00686092]
[1737300540297,0.56799497,104890.0,104880.0,0.10220792]
[1737300540497,0.52352786,104890.0,104880.0,0.24372852]
[1737300540723,0.52352786,104890.0,104880.0,0.45674912]
[1737300540862,0.52352786,104890.0,104880.0,0.49296933]
[1737300541060,0.01658519,104890.0,104880.0,0.49296933]
[1737300541280,0.01658519,104890.0,104880.0,0.66600658]
[1737300545845,0.01658519,104890.0,104880.0,0.67549902]
[1737300546944,0.01658519,104890.0,104880.0,0.54945782]
[1737300547161,0.01658519,104890.0,104880.0,0.67549902]
[1737300547551,0.01658519,104890.0,104880.0,0.66953606]
[1737300551085,0.01658519,104890.0,104880.0,0.67549751]
[1737300553373,0.01658519,104890.0,104880.0,0.66953606]
[1737300554219,0.01658519,104890.0,104880.0,0.54349486]
[1737300554421,0.01658519,104890.0,104880.0,0.66953606]
[1737300555005,0.01658519,104890.0,104880.0,0.74635417]
[1737300555177,0.01658519,104890.0,104880.0,0.84635417]
[1737300555375,8e-07,104900.0,104890.0,0.26001665]
[1737300555578,0.21416452,104920.0,104910.0,0.58403565]
[1737300555783,0.21416452,104920.0,104910.0,0.80931766]
[1737300556030,0.21416452,104920.0,104910.0,0.70931766]
[1737300556459,0.000428,104920.0,104910.0,0.58327646]
[1737300556675,0.000428,104920.0,104910.0,0.70901838]
[1737300556878,0.000428,104920.0,104910.0,0.70931766]
[1737300557889,0.000428,104920.0,104910.0,0.45457646]
[1737300558188,0.000428,104920.0,104910.0,0.40787969]
[1737300558513,0.000428,104920.0,104910.0,0.51759706]
[1737300558919,0.000428,104920.0,104910.0,0.40787969]
[1737300559051,0.000428,104920.0,104910.0,0.51759706]
[1737300559846,0.000428,104920.0,104910.0,0.58061766]
[1737300560864,0.000428,104920.0,104910.0,0.45457646]
[1737300561133,0.000428,104920.0,104910.0,0.58061766]
[1737300561755,0.000428,104920.0,104910.0,0.51759706]
[1737300562518,0.000428,104920.0,104910.0,0.40787969]
[1737300562727,0.000428,104920.0,104910.0,0.66091766]
[1737300564232,0.000428,104920.0,104910.0,0.70931766]
[1737300564796,0.000428,104920.0,104910.0,0.80931766]
[1737300565625,0.000428,104920.0,104910.0,0.83231766]
[1737300570805,0.000428,104920.0,104910.0,0.85152652]
[1737300572431,0.0065,104930.0,104920.0,0.53112665]
[1737300572616,0.00664977,104930.0,104920.0,0.75640866]
[1737300573798,0.00664977,104930.0,104920.0,0.90640866]
[1737300574905,0.00664977,104930.0,104920.0,0.75640866]
[1737300575108,0.00664977,104930.0,104920.0,0.65640866]
[1737300575905,0.00664977,104930.0,104920.0,0.36758806]
[1737300576096,0.00664977,104930.0,104920.0,0.50640866]
[1737300576358,0.00664977,104930.0,104920.0,0.65640866]
[1737300576670,0.00664977,104930.0,104920.0,0.51599015]
[1737300577001,0.00664977,104930.0,104920.0,0.66599015]
[1737300577725,0.00664977,104930.0,104920.0,0.71549015]
[1737300579765,7.7e-07,104930.0,104920.0,0.71549015]
[1737300579922,7.7e-07,104930.0,104920.0,0.97144852]
[1737300580903,0.000428,104940.0,104930.0,0.80715885]
[1737300580904,7.7e-07,104940.0,104930.0,0.80715885]
[1737300581236,7.7e-07,104940.0,104930.0,0.8436693]
[1737300581632,7.7e-07,104940.0,104930.0,0.84962767]
[1737300582218,7.7e-07,104940.0,104930.0,0.87262767]
[1737300583041,7.7e-07,104940.0,104930.0,0.72262767]
[1737300583245,7.7e-07,104940.0,104930.0,0.87262767]
[1737300583614,7.7e-07,104940.0,104930.0,0.92212767]
[1737300586797,7.7e-07,104940.0,104930.0,0.94081547]
[1737300588822,7.7e-07,104940.0,104930.0,0.9348571]
[1737300591339,7.7e-07,104940.0,104930.0,0.96266953]
[1737300591781,7.7e-07,104940.0,104930.0,0.9348571]
[1737300592739,7.7e-07,104940.0,104930.0,0.94081461]
[1737300593463,7.7e-07,104940.0,104930.0,0.95409461]
[1737300593690,7.7e-07,104940.0,104930.0,0.53947341]
[1737300593935,7.7e-07,104940.0,104930.0,0.82879461]
[1737300595629,7.7e-07,104940.0,104930.0,0.85752219]
[1737300596136,7.7e-07,104940.0,104930.0,0.70752219]
[1737300596349,7.7e-07,104940.0,104930.0,0.82969215]
[1737300596550,7.7e-07,104940.0,104930.0,0.72969215]
[1737300596780,7.7e-07,104940.0,104930.0,0.57961215]
[1737300597667,7.7e-07,104940.0,104930.0,0.607471]
[1737300597863,7.7e-07,104940.0,104930.0,0.57961215]
[1737300600878,7.7e-07,104940.0,104930.0,0.60748713]
[1737300601068,7.7e-07,104940.0,104930.0,0.55661215]
[1737300601274,7.7e-07,104940.0,104930.0,0.54341215]
[1737300601579,7.7e-07,104940.0,104930.0,0.53745464]
[1737300602253,7.7e-07,104940.0,104930.0,0.54341276]
[1737300602462,7.7e-07,104940.0,104930.0,0.37472496]
[1737300602889,7.7e-07,104940.0,104930.0,0.52472496]
[1737300603306,7.7e-07,104940.0,104930.0,0.35139747]
[1737300603507,7.7e-07,104940.0,104930.0,0.31170436]
[1737300603712,7.7e-07,104940.0,104930.0,0.37472496]
[1737300604123,7.7e-07,104940.0,104930.0,0.52472496]
[1737300604334,7.7e-07,104940.0,104930.0,0.62462496]
[1737300604532,7.7e-07,104940.0,104930.0,0.67452496]
[1737300604735,7.7e-07,104940.0,104930.0,0.70240219]
[1737300605298,7.7e-07,104940.0,104930.0,0.69644407]
[1737300605702,7.7e-07,104940.0,104930.0,0.39272564]
[1737300606015,7.7e-07,104940.0,104930.0,0.51876684]
[1737300606327,7.7e-07,104940.0,104930.0,0.53823809]
[1737300606552,7.7e-07,104940.0,104930.0,0.56123809]
[1737300606925,7.7e-07,104940.0,104930.0,0.63563003]
[1737300607449,7.7e-07,104940.0,104930.0,0.7176882]
[1737300607653,7.7e-07,104940.0,104930.0,0.80306801]
[1737300608089,7.7e-07,104940.0,104930.0,0.81626801]
[1737300608494,7.7e-07,104940.0,104930.0,1.11509735]
[1737300609484,7.7e-07,104940.0,104930.0,1.24316707]
[1737300609704,7.7e-07,104940.0,104930.0,1.19666707]
[1737300610899,7.7e-07,104940.0,104930.0,1.17366707]
[1737300611317,7.7e-07,104940.0,104930.0,1.2591385]
[1737300611806,7.7e-07,104940.0,104930.0,1.2821385]
[1737300612782,7.7e-07,104940.0,104930.0,1.19666707]
[1737300613725,7.7e-07,104940.0,104930.0,1.44666707]
[1737300613899,7.7e-07,104940.0,104930.0,1.4407089]
[1737300614708,7.7e-07,104940.0,104930.0,1.31263918]
[1737300614912,7.7e-07,104940.0,104930.0,1.398019]
[1737300615368,7.7e-07,104940.0,104930.0,1.444519]
[1737300617106,0.0004279,104960.0,104950.0,0.29256929]
[1737300617314,0.0004279,104960.0,104950.0,0.41970204]
[1737300617519,0.0004279,104960.0,104950.0,0.48272264]
[1737300618623,0.0004279,104960.0,104950.0,0.70237298]
[1737300618823,0.0004279,104960.0,104950.0,0.67448104]
[1737300619000,0.0811279,104960.0,104950.0,0.61146044]
[1737300619203,0.0811279,104960.0,104950.0,0.62719475]
[1737300619608,0.0811279,104960.0,104950.0,0.67448104]
[1737300620262,0.0811279,104960.0,104950.0,0.54626512]
[1737300620671,0.0811279,104960.0,104950.0,0.49897883]
[1737300621032,0.0811279,104960.0,104950.0,0.46078784]
[1737300621234,0.0811279,104960.0,104950.0,0.41350155]
[1737300621235,0.1288279,104960.0,104950.0,0.41350155]
[1737300621830,0.1297847,104960.0,104950.0,0.26350155]
[1737300622005,0.1288279,104960.0,104950.0,0.41350155]
[1737300625012,0.1288279,104960.0,104950.0,0.40754441]
[1737300625502,0.2250587,104960.0,104950.0,0.15]
[1737300625669,0.0778,104950.0,104940.0,0.3488746]
[1737300626069,0.0778,104950.0,104940.0,0.4988746]
[1737300626293,0.0778,104950.0,104940.0,0.50483385]
[1737300626659,0.0778,104950.0,104940.0,0.15595925]
[1737300626660,0.219283,104950.0,104940.0,0.15595925]
[1737300626913,0.219283,104950.0,104940.0,0.25125125]
[1737300627135,0.124,104950.0,104940.0,0.31427185]
[1737300627339,0.20940768,104950.0,104940.0,0.31427185]
[1737300628413,0.16320768,104950.0,104940.0,0.47653326]
[1737300628595,0.08540768,104950.0,104940.0,0.47653326]
[1737300628795,0.08540768,104950.0,104940.0,0.46079895]
[1737300629213,0.72228167,104960.0,104950.0,0.245283]
[1737300629414,0.72228167,104960.0,104950.0,0.3083036]
[1737300630058,0.1244279,104960.0,104950.0,0.3083036]
[1737300630539,0.1244279,104960.0,104950.0,0.32379694]
[1737300630934,0.1253847,104960.0,104950.0,0.32379694]
[1737300631136,0.1244279,104960.0,104950.0,0.32379694]
[1737300631337,0.1244279,104960.0,104950.0,0.26077634]
[1737300631976,0.2206587,104960.0,104950.0,0.26077634]
[1737300632181,0.1244279,104960.0,104950.0,0.26077634]
[1737300632382,0.1253847,104960.0,104950.0,0.26077634]
[1737300632982,0.2206587,104960.0,104950.0,0.26077634]
[1737300633158,0.2197019,104960.0,104950.0,0.26077634]
[1737300633375,0.4332211,104960.0,104950.0,0.26077634]
[1737300633504,0.3379471,104960.0,104950.0,0.26077634]
[1737300634550,0.5332211,104960.0,104950.0,0.26077634]
[1737300634915,0.5332211,104960.0,104950.0,0.16549334]
[1737300635138,0.5332211,104960.0,104950.0,0.01549334]
[1737300635549,0.5332211,104960.0,104950.0,0.11077634]
[1737300636419,0.91755567,104960.0,104950.0,0.01549334]
[1737300636553,0.91755567,104960.0,104950.0,0.11077634]
[1737300637155,0.91755567,104960.0,104950.0,0.01549334]
[1737300637810,0.91755567,104960.0,104950.0,0.11077634]
[1737300638234,0.72228167,104960.0,104950.0,0.11077634]
[1737300638793,0.72228167,104960.0,104950.0,0.17379694]
[1737300639021,0.81755567,104960.0,104950.0,0.17379694]
[1737300639217,0.72228167,104960.0,104950.0,0.17379694]
[1737300639667,0.46256246,104960.0,104950.0,0.32379694]
[1737300639841,0.38476246,104960.0,104950.0,0.32379694]
[1737300640778,0.0004279,104960.0,104950.0,0.32379694]
[1737300641931,0.0004279,104960.0,104950.0,0.42303775]
[1737300643785,0.0004279,104960.0,104950.0,0.42492779]
[1737300646357,0.0004279,104960.0,104950.0,0.36190719]
[1737300646494,0.0004279,104960.0,104950.0,0.42492779]
[1737300647786,0.0004279,104960.0,104950.0,0.42303775]
[1737300649259,0.0013847,104960.0,104950.0,0.26077634]
[1737300649473,0.0004279,104960.0,104950.0,0.32379694]
[1737300651096,0.0013847,104960.0,104950.0,0.32379694]
[1737300651690,0.0004279,104960.0,104950.0,0.32379694]
[1737300651890,0.0013847,104960.0,104950.0,0.32379694]
[1737300653187,0.0004279,104960.0,104950.0,0.32379694]
[1737300654349,0.0013847,104960.0,104950.0,0.32379694]
[1737300656039,0.0004279,104960.0,104950.0,0.32379694]
[1737300657299,0.0004279,104960.0,104950.0,0.42303775]
[1737300657523,0.0004279,104960.0,104950.0,0.50323775]
[1737300661288,0.0004279,104960.0,104950.0,0.55052404]
[1737300662056,0.0004279,104960.0,104950.0,0.69106685]
[1737300662998,0.08540768,104980.0,104970.0,0.175465]
[1737300663273,0.08555745,104980.0,104970.0,0.40169955]
[1737300663487,0.08555745,104980.0,104970.0,0.4480333]
[1737300663896,0.00014977,104980.0,104970.0,0.4480333]
[1737300664253,0.00014977,104980.0,104970.0,0.4976333]
[1737300664853,0.00014977,104980.0,104970.0,0.66312664]
[1737300668317,0.00057767,104980.0,104970.0,0.66312664]
[1737300668709,0.00057767,104980.0,104970.0,0.67282125]
[1737300670906,0.00057767,104980.0,104970.0,0.55050604]
[1737300671298,0.00057767,104980.0,104970.0,0.42301975]
[1737300671510,0.00057767,104980.0,104970.0,0.32377894]
[1737300671732,0.00057767,104980.0,104970.0,0.01549334]
[1737300671909,0.22179047,104980.0,104970.0,0.01549334]
[1737300672124,0.22083367,104980.0,104970.0,0.01549334]
[1737300672342,0.42354738,104980.0,104970.0,0.01549334]
[1737300672688,0.32007448,104980.0,104970.0,0.01549334]
[1737300673218,0.34307448,104980.0,104970.0,0.01549334]
[1737300673420,0.34307448,104980.0,104970.0,0.00595925]
[1737300673421,0.72740904,104980.0,104970.0,0.00595925]
[1737300673662,0.29798771,104960.0,104950.0,0.01043268]
[1737300674001,0.34251481,104960.0,104950.0,0.01043268]
[1737300674727,0.34251481,104960.0,104950.0,0.00089859]
[1737300675741,0.59873786,104960.0,104950.0,0.00089859]
[1737300676763,0.81225155,104960.0,104950.0,0.00089859]
[1737300676971,0.91149236,104960.0,104950.0,0.00089859]
[1737300678322,0.93027874,104960.0,104950.0,0.00089859]
[1737300678884,0.72641453,104960.0,104950.0,0.00089859]
[1737300679286,0.287783,104950.0,104940.0,0.00169714]
[1737300679491,0.43472381,104950.0,104940.0,0.00079855]
[1737300680175,0.28472381,104950.0,104940.0,0.00079855]
[1737300680297,0.54094686,104950.0,104940.0,0.00079855]
[1737300681363,0.98461699,104950.0,104940.0,0.00079855]
[1737300681765,1.06161699,104950.0,104940.0,0.00079855]
[1737300681960,0.94211699,104950.0,104940.0,0.00079855]
[1737300682196,1.04211699,104950.0,104940.0,0.00079855]
[1737300682591,0.6582159,104950.0,104940.0,0.00079855]
[1737300682771,0.5582159,104950.0,104940.0,0.00079855]
[1737300682964,0.6582159,104950.0,104940.0,0.00079855]
[1737300683652,0.38254887,104950.0,104940.0,0.00079855]
[1737300683830,0.27983516,104950.0,104940.0,0.00079855]
[1737300684166,0.08531135,104950.0,104940.0,0.15911115]
[1737300684593,0.00964948,104960.0,104950.0,0.095283]
[1737300684776,0.00964948,104960.0,104950.0,0.1583036]
[1737300684777,0.20492348,104960.0,104950.0,0.1583036]
[1737300684936,0.20492348,104960.0,104940.0,0.36555555]
[1737300684937,0.68005451,104960.0,104940.0,0.36555555]
[1737300685277,0.68005451,104960.0,104940.0,0.28665555]
[1737300685604,0.095283,104950.0,104940.0,0.00079855]
[1737300685814,0.1962398,104950.0,104940.0,0.00079855]
[1737300686210,0.1962398,104950.0,104940.0,0.00675803]
[1737300686340,0.29548061,104950.0,104940.0,0.00675803]
[1737300686536,0.29452381,104950.0,104940.0,0.00675803]
[1737300686980,0.29723752,104950.0,104940.0,0.00079855]
[1737300687200,0.37473752,104950.0,104940.0,0.00079855]
[1737300687862,0.39380684,104950.0,104940.0,0.00079855]
[1737300688069,0.47905837,104950.0,104940.0,0.00079855]
[1737300688661,0.54845837,104950.0,104940.0,0.00079855]
[1737300688853,0.67633567,104950.0,104940.0,0.00079855]
[1737300689943,0.65333567,104950.0,104940.0,0.00079855]
[1737300691171,0.53512882,104950.0,104940.0,0.00079855]
[1737300692314,0.44987729,104950.0,104940.0,0.00079855]
[1737300695171,0.40347729,104950.0,104940.0,0.00079855]
[1737300696822,0.30766716,104950.0,104940.0,0.09609055]
[1737300697020,0.20495345,104950.0,104940.0,0.00079855]
[1737300697264,0.30862396,104950.0,104940.0,0.00079855]
[1737300697405,0.30766716,104950.0,104940.0,0.00079855]
[1737300697604,0.20766716,104950.0,104940.0,0.09609055]
[1737300697806,0.30862396,104950.0,104940.0,0.10205091]
[1737300698007,0.10495345,104950.0,104940.0,0.10205091]
[1737300698219,0.30862396,104950.0,104940.0,0.00675891]
[1737300698419,0.20495345,104950.0,104940.0,0.00675891]
[1737300698665,0.20591025,104950.0,104940.0,0.00675891]
[1737300698834,0.20591025,104950.0,104940.0,0.01629549]
[1737300701864,0.40786477,104950.0,104940.0,0.01629549]
[1737300702064,0.48440797,104950.0,104940.0,0.01629549]
[1737300702481,0.38440797,104950.0,104940.0,0.02821568]
[1737300702713,0.30873425,104950.0,104940.0,0.02821568]
[1737300702929,0.38440797,104950.0,104940.0,0.02821568]
[1737300703484,0.38440797,104950.0,104940.0,0.01629549]
[1737300703687,0.51682857,104950.0,104940.0,0.01629549]
[1737300703941,0.45380797,104950.0,104940.0,0.01629549]
[1737300704404,0.51682857,104950.0,104940.0,0.01629549]
[1737300704860,0.61649738,104950.0,104940.0,0.01629549]
[1737300705031,0.55347678,104950.0,104940.0,0.01629549]
[1737300705309,0.45423597,104950.0,104940.0,0.00675891]
[1737300705717,0.94817476,104950.0,104940.0,0.00675891]
[1737300705925,0.20271371,104930.0,104920.0,0.00183363]
[1737300706129,0.39821232,104930.0,104920.0,0.00183363]
[1737300706310,0.39725552,104930.0,104920.0,0.00183363]
[1737300707254,0.39730541,104930.0,104920.0,0.00183363]
[1737300707726,0.39730541,104930.0,104920.0,0.0214617]
[1737300709429,0.2980646,104930.0,104920.0,0.0214617]
[1737300710952,0.20736794,104930.0,104920.0,0.0214617]
[1737300711182,0.20832474,104930.0,104920.0,0.0214617]
[1737300711811,0.20832474,104930.0,104920.0,0.1974717]
[1737300712032,0.00935323,104930.0,104920.0,0.41232593]
[1737300712209,4.989e-05,104930.0,104920.0,0.41232593]
[1737300712573,4.989e-05,104930.0,104920.0,0.46142593]
[1737300712983,4.989e-05,104930.0,104920.0,0.56066674]
[1737300713183,4.989e-05,104930.0,104920.0,0.55883311]
[1737300714464,4.989e-05,104930.0,104920.0,0.54690994]
[1737300716280,4.989e-05,104930.0,104920.0,0.59419623]
[1737300717229,4.989e-05,104930.0,104920.0,0.6061163]
[1737300717436,4.989e-05,104930.0,104920.0,0.6070151]
[1737300718496,4.989e-05,104930.0,104920.0,0.44475369]
[1737300718736,4.989e-05,104930.0,104920.0,0.39150722]
[1737300719071,4.989e-05,104930.0,104920.0,0.43879351]
[1737300719401,4.989e-05,104930.0,104920.0,0.39150722]
[1737300720048,4.989e-05,104930.0,104920.0,0.43879351]
[1737300720570,4.989e-05,104930.0,104920.0,0.39150722]
[1737300721268,0.21403168,104930.0,104920.0,0.39150722]
[1737300721548,0.21403168,104930.0,104920.0,0.39334348]
[1737300721748,0.21403168,104930.0,104920.0,0.50365037]
[1737300721950,0.21403168,104930.0,104920.0,0.45636408]
[1737300722354,0.21403168,104930.0,104920.0,0.50365037]
[1737300722795,0.21403168,104930.0,104920.0,0.50181411]
[1737300722924,0.08519758,104930.0,104920.0,0.50181411]
[1737300723307,0.08519758,104930.0,104920.0,0.60105492]
[1737300723747,4.989e-05,104930.0,104920.0,0.60105492]
[1737300725757,0.5970849,104950.0,104940.0,0.54401949]
[1737300726076,0.5970849,104950.0,104940.0,0.6432603]
[1737300726264,0.21345299,104950.0,104940.0,0.6432603]
[1737300726391,0.0703904,104950.0,104940.0,0.6432603]
[1737300726597,0.0703904,104950.0,104940.0,0.6562203]
[1737300726840,0.38363191,104960.0,104950.0,0.32268629]
[1737300726986,0.3837746,104960.0,104950.0,0.7932513]
[1737300727415,0.3837746,104960.0,104950.0,0.83174972]
[1737300727658,0.3837746,104960.0,104950.0,0.93174972]
[1737300727836,0.3837746,104960.0,104950.0,0.83174972]
[1737300728181,0.00014269,104960.0,104950.0,0.93174972]
[1737300729161,0.00014269,104960.0,104950.0,1.59165179]
[1737300729367,0.00014269,104960.0,104950.0,1.42428157]
[1737300729798,0.00014269,104960.0,104950.0,1.48730217]
[1737300729969,0.00014269,104960.0,104950.0,1.33730217]
[1737300730173,0.00014269,104960.0,104950.0,1.22699528]
[1737300730379,0.00014269,104960.0,104950.0,1.08521704]
[1737300730976,0.00014269,104960.0,104950.0,1.14823764]
[1737300731346,0.00014269,104960.0,104950.0,0.59572912]
[1737300732183,0.00014269,104960.0,104950.0,0.5802307]
[1737300732977,0.00014269,104960.0,104950.0,0.6432513]
[1737300733179,0.00014269,104960.0,104950.0,0.65873968]
[1737300734023,0.00014269,104960.0,104950.0,0.59571908]
[1737300735091,6.9e-07,104960.0,104950.0,0.68173968]
[1737300735315,5.9e-07,104970.0,104960.0,0.39136029]
[1737300735516,5.9e-07,104970.0,104960.0,0.6662423]
[1737300736242,5.9e-07,104970.0,104960.0,0.78173068]
[1737300736410,5.9e-07,104970.0,104960.0,1.26472913]
[1737300739261,5.9e-07,104970.0,104960.0,1.27435445]
[1737300740727,5.9e-07,104970.0,104960.0,1.27525304]
[1737300741374,5.9e-07,104970.0,104960.0,1.29442599]
[1737300742602,0.0004279,104990.0,104980.0,0.3082766]
[1737300742827,0.0004279,104990.0,104980.0,0.4548037]
[1737300743730,0.0004279,104990.0,104980.0,0.47029208]
[1737300743954,0.0004279,104990.0,104980.0,0.26074438]
[1737300744089,0.0013847,104990.0,104980.0,0.26074438]
[1737300744291,0.0966317,104990.0,104980.0,0.26074438]
[1737300744496,0.0004279,104990.0,104980.0,0.26074438]
[1737300744702,0.0004279,104990.0,104980.0,0.32376498]
[1737300744920,0.0013847,104990.0,104980.0,0.32556602]
[1737300745336,0.0013847,104990.0,104980.0,0.3082766]
[1737300745727,0.0013847,104990.0,104980.0,0.26254583]
[1737300746653,0.0013847,104990.0,104980.0,0.32556643]
[1737300747020,0.0004279,104990.0,104980.0,0.32556643]
[1737300749336,0.0004279,104990.0,104980.0,0.26254583]
[1737300749801,0.0004279,104990.0,104980.0,0.26183356]
[1737300750683,0.0013847,104990.0,104980.0,0.26183356]
[1737300751398,0.0004279,104990.0,104980.0,0.26183356]
[1737300751740,0.0013847,104990.0,104980.0,0.26183356]
[1737300752334,0.0004279,104990.0,104980.0,0.26183356]
[1737300752538,0.0013847,104990.0,104980.0,0.26183356]
[1737300753526,0.0013847,104990.0,104980.0,0.26003201]
[1737300753735,0.0966317,104990.0,104980.0,0.26003201]
[1737300753977,0.0013847,104990.0,104980.0,0.26003201]
[1737300754391,0.0966317,104990.0,104980.0,0.26003201]
[1737300754936,0.0013847,104990.0,104980.0,0.26003201]
[1737300756049,0.0004279,104990.0,104980.0,0.26003201]
[1737300756241,0.0013847,104990.0,104980.0,0.26003201]
[1737300757182,0.0004279,104990.0,104980.0,0.26003201]
[1737300757394,0.0013847,104990.0,104980.0,0.26003201]
[1737300757594,0.0004279,104990.0,104980.0,0.42229342]
[1737300757788,0.0004279,104990.0,104980.0,0.54597971]
[1737300758022,0.0004279,104990.0,104980.0,0.65800031]
[1737300758671,0.0004279,104990.0,104980.0,0.59497971]
[1737300759052,0.0004279,104990.0,104980.0,0.65800031]
[1737300759681,9e-07,104990.0,104980.0,0.69388031]
[1737300759878,0.0164353,105000.0,104990.0,0.36893329]
[1737300760133,0.01657799,105000.0,104990.0,0.5942153]
[1737300760860,0.01657799,105000.0,104990.0,0.6172153]
[1737300761281,0.01657799,105000.0,104990.0,0.63596679]
[1737300761492,0.01657799,105000.0,104990.0,0.65145507]
[1737300762803,0.01657799,105000.0,104990.0,0.66038643]
[1737300763122,0.0004276,105030.0,105020.0,0.095219]
[1737300763347,0.00092653,105030.0,105020.0,0.40748041]
[1737300764665,0.00092653,105030.0,105020.0,0.42296869]
[1737300765044,0.00188333,105030.0,105020.0,0.26070728]
[1737300765213,0.00188333,105030.0,105020.0,0.32372788]
[1737300765633,0.00092653,105030.0,105020.0,0.32372788]
[1737300765838,0.00188333,105030.0,105020.0,0.32372788]
[1737300766041,0.00092653,105030.0,105020.0,0.32372788]
[1737300768361,0.00092653,105030.0,105020.0,0.32553181]
[1737300772461,0.09613653,105030.0,105020.0,0.01729221]
[1737300772615,0.20039333,105030.0,105020.0,0.01729221]
[1737300772817,0.30039333,105030.0,105020.0,0.01729221]
[1737300773020,0.40296971,105030.0,105020.0,0.01729221]
[1737300773563,0.44966971,105030.0,105020.0,0.01729221]
[1737300773771,0.34537734,105030.0,105020.0,0.01729221]
[1737300774117,0.34537734,105030.0,105020.0,0.01548828]
[1737300774975,0.50763875,105030.0,105020.0,0.01548828]
[1737300775345,0.34876218,105010.0,105000.0,2.98522594]
[1737300775570,0.44800299,105010.0,105000.0,2.98522594]
[1737300775772,0.44800299,105010.0,105000.0,2.98342201]
[1737300775925,0.34446981,105010.0,105000.0,2.98342201]
[1737300776630,0.55747792,105010.0,105000.0,2.98342201]
[1737300777241,0.71973933,105010.0,105000.0,2.98342201]
[1737300777442,0.71973933,105010.0,105000.0,2.98432081]
[1737300777443,0.86973933,105010.0,105000.0,2.98432081]
[1737300777851,1.16800898,105010.0,105000.0,2.98432081]
[1737300778287,1.17758885,105010.0,105000.0,2.98432081]
[1737300779515,1.049943,105010.0,105000.0,2.97777991]
[1737300779931,1.049943,105010.0,105000.0,2.9482399]
[1737300780131,1.06927569,105010.0,105000.0,2.9482399]
[1737300780335,1.06927569,105010.0,105000.0,2.9412399]
[1737300780538,0.97003488,105010.0,105000.0,2.9412399]
[1737300780919,0.84215758,105010.0,105000.0,2.9412399]
[1737300782112,0.84215758,105010.0,105000.0,2.9113399]
[1737300782313,0.84215758,105010.0,105000.0,2.8485813]
[1737300782518,0.94139839,105010.0,105000.0,2.7204813]
[1737300783976,0.94139839,105010.0,105000.0,2.6920513]